[Event "Early-Titled-Tuesday-Blitz-October-03-2023"]
[Site "Chess.com"]
[Date "2023.10.03"]
[Round "6"]
[White "WindWhistler11"]
[Black "LeoWin2012"]
[Result "0-1"]
[WhiteElo "2450"]
[BlackElo "2320"]
[TimeControl "180+1"]
[EndTime "9:04:26 PDT"]
[Termination "LeoWin2012 won by resignation"]

1. Nf3 {[%clk 0:02:57]} 1... Nf6 {[%clk 0:02:58.4]} 2. g3 {[%clk 0:02:57.6]}
2... g6 {[%clk 0:02:55.8]} 3. Bg2 {[%clk 0:02:58.1]} 3... Bg7 {[%clk 0:02:56.5]}
4. d4 {[%clk 0:02:58.1]} 4... O-O {[%clk 0:02:57.4]} 5. b3 {[%clk 0:02:58.6]}
5... d5 {[%clk 0:02:57.1]} 6. Bb2 {[%clk 0:02:59]} 6... b6 {[%clk 0:02:57.5]} 7.
O-O {[%clk 0:02:59.4]} 7... Bb7 {[%clk 0:02:57.9]} 8. c4 {[%clk 0:02:59.9]} 8...
c5 {[%clk 0:02:57.7]} 9. dxc5 {[%clk 0:02:59.4]} 9... dxc4 {[%clk 0:02:57.1]}
10. cxb6 {[%clk 0:02:57.3]} 10... cxb3 {[%clk 0:02:57.3]} 11. bxa7 {[%clk
0:02:55.1]} 11... Qxd1 {[%clk 0:02:48.7]} 12. Rxd1 {[%clk 0:02:51.9]} 12... bxa2
{[%clk 0:02:43.5]} 13. Rxa2 {[%clk 0:02:29.7]} 13... Nc6 {[%clk 0:02:31.9]} 14.
Ne5 {[%clk 0:02:27.6]} 14... Rfc8 {[%clk 0:02:20.2]} 15. Nd7 {[%clk 0:02:11.3]}
15... Rc7 {[%clk 0:01:54.5]} 16. Nb6 {[%clk 0:01:53]} 16... Rxa7 {[%clk
0:01:51.7]} 17. Rxa7 {[%clk 0:01:52.6]} 17... Nxa7 {[%clk 0:01:52.6]} 18. Rd8+
{[%clk 0:01:43.6]} 18... Bf8 {[%clk 0:01:50.1]} 19. Bxf6 {[%clk 0:01:30.2]}
19... exf6 {[%clk 0:01:41.9]} 20. Nd7 {[%clk 0:01:10.2]} 20... Rc1+ {[%clk
0:01:40.8]} 21. Bf1 {[%clk 0:01:10]} 21... Rxb1 {[%clk 0:01:39.1]} 22. Rxf8+
{[%clk 0:01:09.6]} 22... Kg7 {[%clk 0:01:38.6]} 23. Rb8 {[%clk 0:01:08.6]} 23...
Be4 {[%clk 0:01:31.2]} 24. Ra8 {[%clk 0:00:54.9]} 24... Bxa8 {[%clk 0:01:29.2]}
0-1

[Event "Early-Titled-Tuesday-Blitz-October-03-2023"]
[Site "Chess.com"]
[Date "2023.10.03"]
[Round "6"]
[White "JoseRemolar"]
[Black "TregubovP"]
[Result "1-0"]
[WhiteElo "2464"]
[BlackElo "2604"]
[TimeControl "180+1"]
[EndTime "9:04:29 PDT"]
[Termination "JoseRemolar won by resignation"]

1. e4 {[%clk 0:03:00.9]} 1... c5 {[%clk 0:02:43.4]} 2. Nf3 {[%clk 0:03:00.3]}
2... e6 {[%clk 0:02:43.6]} 3. d4 {[%clk 0:02:59.8]} 3... cxd4 {[%clk 0:02:43.8]}
4. Nxd4 {[%clk 0:03:00.7]} 4... Nf6 {[%clk 0:02:39.9]} 5. Bd3 {[%clk 0:03:00.4]}
5... Nc6 {[%clk 0:02:39.2]} 6. Nxc6 {[%clk 0:02:59.7]} 6... bxc6 {[%clk
0:02:39.5]} 7. O-O {[%clk 0:02:59.1]} 7... d5 {[%clk 0:02:39.9]} 8. Nd2 {[%clk
0:02:59.6]} 8... Be7 {[%clk 0:02:39.5]} 9. b3 {[%clk 0:03:00.1]} 9... O-O {[%clk
0:02:39.4]} 10. Bb2 {[%clk 0:03:00.7]} 10... a5 {[%clk 0:02:39.6]} 11. Qe2
{[%clk 0:02:51.4]} 11... a4 {[%clk 0:02:39.3]} 12. Rab1 {[%clk 0:02:52]} 12...
Qb6 {[%clk 0:02:32.5]} 13. Kh1 {[%clk 0:02:46.9]} 13... Ba6 {[%clk 0:02:31.6]}
14. c4 {[%clk 0:02:24.3]} 14... Rfd8 {[%clk 0:02:10]} 15. f4 {[%clk 0:01:59.1]}
15... axb3 {[%clk 0:01:58.7]} 16. axb3 {[%clk 0:01:58.9]} 16... dxe4 {[%clk
0:01:57.4]} 17. Nxe4 {[%clk 0:01:57.4]} 17... Ne8 {[%clk 0:01:35.8]} 18. Bc2
{[%clk 0:01:47.3]} 18... c5 {[%clk 0:01:25]} 19. Ng5 {[%clk 0:01:33.3]} 19... g6
{[%clk 0:01:16.5]} 20. Nxh7 {[%clk 0:01:23.4]} 20... Qb4 {[%clk 0:01:06.6]} 21.
Qe5 {[%clk 0:01:19.1]} 1-0

[Event "Early-Titled-Tuesday-Blitz-October-03-2023"]
[Site "Chess.com"]
[Date "2023.10.03"]
[Round "6"]
[White "B_nn_t"]
[Black "Maxfan2008"]
[Result "0-1"]
[WhiteElo "2394"]
[BlackElo "2573"]
[TimeControl "180+1"]
[EndTime "9:04:29 PDT"]
[Termination "Maxfan2008 won by resignation"]

1. h3 {[%clk 0:03:00.9]} 1... d5 {[%clk 0:02:59.4]} 2. d4 {[%clk 0:02:58.1]}
2... Nf6 {[%clk 0:02:58.9]} 3. c4 {[%clk 0:02:55.8]} 3... c6 {[%clk 0:02:57.5]}
4. Nc3 {[%clk 0:02:55.7]} 4... Bf5 {[%clk 0:02:56.5]} 5. Nf3 {[%clk 0:02:53.8]}
5... e6 {[%clk 0:02:56.4]} 6. e3 {[%clk 0:02:53.5]} 6... h6 {[%clk 0:02:56.5]}
7. Bd3 {[%clk 0:02:53]} 7... Bxd3 {[%clk 0:02:53.6]} 8. Qxd3 {[%clk 0:02:53.9]}
8... Nbd7 {[%clk 0:02:53.8]} 9. c5 {[%clk 0:02:53.2]} 9... b6 {[%clk 0:02:50.8]}
10. b4 {[%clk 0:02:52.4]} 10... a5 {[%clk 0:02:50.4]} 11. bxa5 {[%clk
0:02:52.4]} 11... Rxa5 {[%clk 0:02:47.7]} 12. cxb6 {[%clk 0:02:50.9]} 12... Nxb6
{[%clk 0:02:45.4]} 13. O-O {[%clk 0:02:50.8]} 13... Bd6 {[%clk 0:02:44.7]} 14.
a4 {[%clk 0:02:44.7]} 14... O-O {[%clk 0:02:32.3]} 15. Bd2 {[%clk 0:02:44.9]}
15... Nc4 {[%clk 0:02:30.1]} 16. Nb5 {[%clk 0:02:31.9]} 16... Nxd2 {[%clk
0:02:20.4]} 17. Nxd6 {[%clk 0:02:28.2]} 17... Nxf3+ {[%clk 0:02:19.2]} 18. gxf3
{[%clk 0:02:26.4]} 18... Qxd6 {[%clk 0:02:19.1]} 19. Rfb1 {[%clk 0:02:26.4]}
19... Rfa8 {[%clk 0:02:09.3]} 20. Qc2 {[%clk 0:02:21.9]} 20... c5 {[%clk
0:02:07.5]} 21. Rb7 {[%clk 0:02:16]} 21... c4 {[%clk 0:02:03.9]} 22. f4 {[%clk
0:02:13.4]} 22... Qc6 {[%clk 0:01:53.1]} 23. Rab1 {[%clk 0:02:12.5]} 23... g6
{[%clk 0:01:45.6]} 24. Rb8+ {[%clk 0:02:08.6]} 24... Rxb8 {[%clk 0:01:43.2]} 25.
Rxb8+ {[%clk 0:02:09.5]} 25... Kg7 {[%clk 0:01:43.1]} 26. Rb4 {[%clk 0:02:10.4]}
26... Ne4 {[%clk 0:01:39.4]} 27. f3 {[%clk 0:02:10.5]} 27... Nd6 {[%clk
0:01:38.8]} 28. Kg2 {[%clk 0:02:07.8]} 28... Nf5 {[%clk 0:01:38.5]} 29. Kf2
{[%clk 0:02:08.2]} 29... Qd6 {[%clk 0:01:35]} 30. Qb2 {[%clk 0:02:05.9]} 30...
Qe7 {[%clk 0:01:30]} 31. Rb8 {[%clk 0:01:56.4]} 31... Qh4+ {[%clk 0:01:28.6]}
32. Ke2 {[%clk 0:01:57]} 32... Rxa4 {[%clk 0:01:23.7]} 33. e4 {[%clk 0:01:51.8]}
33... Ng3+ {[%clk 0:01:12.4]} 34. Ke3 {[%clk 0:01:51.9]} 34... Qxh3 {[%clk
0:01:06.9]} 35. Qb5 {[%clk 0:01:39]} 35... Ra3+ {[%clk 0:01:01.1]} 0-1

[Event "Early-Titled-Tuesday-Blitz-October-03-2023"]
[Site "Chess.com"]
[Date "2023.10.03"]
[Round "6"]
[White "azikom"]
[Black "NowInChess"]
[Result "1-0"]
[WhiteElo "2569"]
[BlackElo "2244"]
[TimeControl "180+1"]
[EndTime "9:04:35 PDT"]
[Termination "azikom won on time"]

1. c4 {[%clk 0:03:00]} 1... e5 {[%clk 0:02:58.3]} 2. Nc3 {[%clk 0:02:59.8]} 2...
Nc6 {[%clk 0:02:58.7]} 3. e3 {[%clk 0:03:00.7]} 3... Nf6 {[%clk 0:02:57.3]} 4.
a3 {[%clk 0:02:59.1]} 4... d5 {[%clk 0:02:42.6]} 5. cxd5 {[%clk 0:03:00]} 5...
Nxd5 {[%clk 0:02:43.2]} 6. Qc2 {[%clk 0:03:00]} 6... Be6 {[%clk 0:02:39.8]} 7.
Nf3 {[%clk 0:02:59.3]} 7... Be7 {[%clk 0:02:37.8]} 8. b4 {[%clk 0:02:59.7]} 8...
a6 {[%clk 0:02:34.1]} 9. Bb2 {[%clk 0:02:59.5]} 9... Bf6 {[%clk 0:02:26.5]} 10.
Ne4 {[%clk 0:02:58.9]} 10... O-O {[%clk 0:02:20.6]} 11. d3 {[%clk 0:02:56.6]}
11... Re8 {[%clk 0:01:51.3]} 12. Be2 {[%clk 0:02:54.9]} 12... Bf5 {[%clk
0:01:44.8]} 13. O-O {[%clk 0:02:52.3]} 13... Bg6 {[%clk 0:01:24.9]} 14. Rac1
{[%clk 0:02:49.8]} 14... Bxe4 {[%clk 0:01:16.3]} 15. dxe4 {[%clk 0:02:49.1]}
15... Nb6 {[%clk 0:01:14.1]} 16. Rfd1 {[%clk 0:02:49.3]} 16... Qe7 {[%clk
0:01:13.4]} 17. g3 {[%clk 0:02:46.1]} 17... h5 {[%clk 0:01:08.8]} 18. h4 {[%clk
0:02:45.5]} 18... g6 {[%clk 0:01:08.9]} 19. b5 {[%clk 0:02:33.1]} 19... axb5
{[%clk 0:00:57.9]} 20. Bxb5 {[%clk 0:02:34]} 20... Red8 {[%clk 0:00:20.2]} 21.
Rxd8+ {[%clk 0:02:29.3]} 21... Nxd8 {[%clk 0:00:16.2]} 22. Qxc7 {[%clk
0:02:25.5]} 22... Qxc7 {[%clk 0:00:11.6]} 23. Rxc7 {[%clk 0:02:24.9]} 23... Na4
{[%clk 0:00:03.7]} 24. Bxa4 {[%clk 0:02:24]} 24... Rxa4 {[%clk 0:00:04.6]} 25.
Rd7 {[%clk 0:02:20.5]} 25... Rxe4 {[%clk 0:00:03.1]} 26. Bxe5 {[%clk 0:02:17.5]}
26... Rxe5 {[%clk 0:00:02]} 27. Nxe5 {[%clk 0:02:16.7]} 1-0

[Event "Early-Titled-Tuesday-Blitz-October-03-2023"]
[Site "Chess.com"]
[Date "2023.10.03"]
[Round "6"]
[White "zozik"]
[Black "Mikhail_Golubev"]
[Result "0-1"]
[WhiteElo "2341"]
[BlackElo "2605"]
[TimeControl "180+1"]
[EndTime "9:04:37 PDT"]
[Termination "Mikhail_Golubev won by resignation"]

1. d4 {[%clk 0:03:00.9]} 1... Nf6 {[%clk 0:02:57.7]} 2. Nf3 {[%clk 0:03:01]}
2... d6 {[%clk 0:02:57.3]} 3. g3 {[%clk 0:03:01.5]} 3... g6 {[%clk 0:02:57.3]}
4. Bg2 {[%clk 0:03:02.1]} 4... Bg7 {[%clk 0:02:58]} 5. O-O {[%clk 0:03:02.7]}
5... O-O {[%clk 0:02:58.5]} 6. c4 {[%clk 0:03:03.4]} 6... Nbd7 {[%clk
0:02:58.6]} 7. Nc3 {[%clk 0:03:03.8]} 7... e5 {[%clk 0:02:58.6]} 8. b3 {[%clk
0:03:04.5]} 8... Re8 {[%clk 0:02:57.4]} 9. Bb2 {[%clk 0:03:04.1]} 9... e4 {[%clk
0:02:56.4]} 10. Nd2 {[%clk 0:03:01.6]} 10... e3 {[%clk 0:02:52.9]} 11. fxe3
{[%clk 0:02:59.2]} 11... Ng4 {[%clk 0:02:51.6]} 12. Nd5 {[%clk 0:02:40.1]} 12...
c6 {[%clk 0:02:41.1]} 13. Bf3 {[%clk 0:02:35.5]} 13... Nxe3 {[%clk 0:02:17.2]}
14. Nxe3 {[%clk 0:02:34.2]} 14... Rxe3 {[%clk 0:02:17.3]} 15. Ne4 {[%clk
0:02:29.4]} 15... d5 {[%clk 0:02:06.3]} 16. cxd5 {[%clk 0:02:22.6]} 16... cxd5
{[%clk 0:02:07.2]} 17. Nd6 {[%clk 0:02:22.4]} 17... Nf6 {[%clk 0:02:01.7]} 18.
Nxc8 {[%clk 0:02:19.8]} 18... Rxc8 {[%clk 0:02:01.9]} 19. Rc1 {[%clk 0:02:17.8]}
19... Re8 {[%clk 0:01:49.2]} 20. Rxc8 {[%clk 0:02:15.7]} 20... Qxc8 {[%clk
0:01:50.1]} 21. Qc1 {[%clk 0:02:08.4]} 21... Qe6 {[%clk 0:01:46.7]} 22. Qf4
{[%clk 0:01:56]} 22... h5 {[%clk 0:01:40.4]} 23. Rc1 {[%clk 0:01:52.5]} 23...
Ng4 {[%clk 0:01:34]} 24. Bxg4 {[%clk 0:01:46.7]} 24... hxg4 {[%clk 0:01:31.5]}
25. Rc7 {[%clk 0:01:43.9]} 25... f6 {[%clk 0:01:09.5]} 26. Rxb7 {[%clk
0:01:22.6]} 26... Qxe2 {[%clk 0:01:05.2]} 27. Rxg7+ {[%clk 0:01:22.1]} 27...
Kxg7 {[%clk 0:01:04.4]} 0-1

[Event "Early-Titled-Tuesday-Blitz-October-03-2023"]
[Site "Chess.com"]
[Date "2023.10.03"]
[Round "6"]
[White "aistrel"]
[Black "JoakimVonAnd"]
[Result "0-1"]
[WhiteElo "2565"]
[BlackElo "2744"]
[TimeControl "180+1"]
[EndTime "9:04:38 PDT"]
[Termination "JoakimVonAnd won by resignation"]

1. d4 {[%clk 0:01:53.6]} 1... Nf6 {[%clk 0:02:59]} 2. Nc3 {[%clk 0:01:52.9]}
2... d5 {[%clk 0:02:56.8]} 3. Bf4 {[%clk 0:01:53.5]} 3... g6 {[%clk 0:02:54.4]}
4. Qd2 {[%clk 0:01:53.6]} 4... Bg7 {[%clk 0:02:54.5]} 5. O-O-O {[%clk
0:01:54.5]} 5... O-O {[%clk 0:02:52]} 6. Bh6 {[%clk 0:01:54.3]} 6... c5 {[%clk
0:02:51.1]} 7. dxc5 {[%clk 0:01:53]} 7... Nc6 {[%clk 0:02:17.1]} 8. f3 {[%clk
0:01:11.8]} 8... e5 {[%clk 0:02:06.3]} 9. Nxd5 {[%clk 0:00:53.4]} 9... Nxd5
{[%clk 0:02:00]} 10. Bxg7 {[%clk 0:00:53.3]} 10... Kxg7 {[%clk 0:01:58.5]} 11.
Qxd5 {[%clk 0:00:52.7]} 11... Qa5 {[%clk 0:01:57.3]} 12. c3 {[%clk 0:00:32.6]}
12... Be6 {[%clk 0:01:52.7]} 13. Qe4 {[%clk 0:00:29.1]} 13... Qxa2 {[%clk
0:01:49]} 14. Qb1 {[%clk 0:00:28.4]} 14... Qa4 {[%clk 0:01:42.1]} 15. e4 {[%clk
0:00:25.9]} 15... Rad8 {[%clk 0:01:40.4]} 16. Bd3 {[%clk 0:00:23.8]} 16... Bb3
{[%clk 0:01:38.6]} 17. Bc2 {[%clk 0:00:24.2]} 17... Rxd1+ {[%clk 0:01:38.5]} 18.
Kxd1 {[%clk 0:00:25]} 18... Rd8+ {[%clk 0:01:38.8]} 19. Kc1 {[%clk 0:00:25.5]}
19... Bxc2 {[%clk 0:01:39.2]} 20. Qxc2 {[%clk 0:00:24.9]} 20... Qa1+ {[%clk
0:01:39.4]} 21. Qb1 {[%clk 0:00:25.8]} 21... Rd1+ {[%clk 0:01:39.7]} 22. Kxd1
{[%clk 0:00:26.4]} 22... Qxb1+ {[%clk 0:01:40.6]} 23. Ke2 {[%clk 0:00:27.1]}
23... Qxb2+ {[%clk 0:01:41.1]} 0-1

[Event "Early-Titled-Tuesday-Blitz-October-03-2023"]
[Site "Chess.com"]
[Date "2023.10.03"]
[Round "6"]
[White "Rodalquilar"]
[Black "ama18"]
[Result "1-0"]
[WhiteElo "2722"]
[BlackElo "2539"]
[TimeControl "180+1"]
[EndTime "9:04:42 PDT"]
[Termination "Rodalquilar won by resignation"]

1. d4 {[%clk 0:03:00.9]} 1... Nf6 {[%clk 0:02:59.6]} 2. Nf3 {[%clk 0:03:01.2]}
2... e6 {[%clk 0:02:59.8]} 3. Bf4 {[%clk 0:03:01.5]} 3... b6 {[%clk 0:02:59.9]}
4. e3 {[%clk 0:03:01.9]} 4... Bb7 {[%clk 0:03:00.4]} 5. Nbd2 {[%clk 0:03:02.4]}
5... g6 {[%clk 0:03:00.3]} 6. h3 {[%clk 0:03:01.9]} 6... Bg7 {[%clk 0:03:00.7]}
7. Bh2 {[%clk 0:03:02.1]} 7... O-O {[%clk 0:03:01.2]} 8. Be2 {[%clk 0:03:02.7]}
8... d6 {[%clk 0:03:01.8]} 9. O-O {[%clk 0:03:02.8]} 9... Nbd7 {[%clk
0:03:02.4]} 10. a4 {[%clk 0:03:02.3]} 10... a5 {[%clk 0:03:01.3]} 11. c3 {[%clk
0:02:59.2]} 11... Qe7 {[%clk 0:03:00.8]} 12. Bd3 {[%clk 0:02:58.8]} 12... e5
{[%clk 0:02:58.9]} 13. e4 {[%clk 0:02:59.3]} 13... exd4 {[%clk 0:02:51.7]} 14.
cxd4 {[%clk 0:02:59.6]} 14... Nxe4 {[%clk 0:02:49]} 15. Nxe4 {[%clk 0:02:57.4]}
15... Bxe4 {[%clk 0:02:49.6]} 16. Re1 {[%clk 0:02:57.8]} 16... f5 {[%clk
0:02:47.8]} 17. Nd2 {[%clk 0:02:58]} 17... Bxd4 {[%clk 0:02:06.9]} 18. Nxe4
{[%clk 0:02:47.2]} 18... fxe4 {[%clk 0:02:04.7]} 19. Bc4+ {[%clk 0:02:47.7]}
19... Kh8 {[%clk 0:02:00.3]} 20. Qxd4+ {[%clk 0:02:47.9]} 20... Nf6 {[%clk
0:01:49.5]} 21. Bd5 {[%clk 0:02:42.7]} 21... Rae8 {[%clk 0:01:38.9]} 22. Bc6
{[%clk 0:02:41]} 22... Rd8 {[%clk 0:01:34.8]} 23. Rxe4 {[%clk 0:02:40.6]} 23...
Qg7 {[%clk 0:01:35.3]} 24. Re6 {[%clk 0:02:38.6]} 24... d5 {[%clk 0:01:25.7]}
25. Rae1 {[%clk 0:02:38.1]} 25... Rf7 {[%clk 0:01:14.6]} 26. Be5 {[%clk
0:02:31.7]} 26... Rdf8 {[%clk 0:01:11.3]} 27. f4 {[%clk 0:01:53.9]} 27... h6
{[%clk 0:00:54.1]} 28. g4 {[%clk 0:01:53.9]} 28... Kg8 {[%clk 0:00:41.7]} 29. g5
{[%clk 0:01:51.5]} 29... hxg5 {[%clk 0:00:42.6]} 30. fxg5 {[%clk 0:01:51.9]}
30... Qh7 {[%clk 0:00:43.2]} 31. Rxf6 {[%clk 0:01:46.4]} 31... Rxf6 {[%clk
0:00:38.5]} 32. Bxf6 {[%clk 0:01:46.7]} 32... Qxh3 {[%clk 0:00:38.7]} 33. Bxd5+
{[%clk 0:01:47.1]} 33... Kh7 {[%clk 0:00:38.4]} 34. Re7+ {[%clk 0:01:46.8]} 1-0

[Event "Early-Titled-Tuesday-Blitz-October-03-2023"]
[Site "Chess.com"]
[Date "2023.10.03"]
[Round "6"]
[White "inegrepus"]
[Black "maracayo"]
[Result "0-1"]
[WhiteElo "2181"]
[BlackElo "2393"]
[TimeControl "180+1"]
[EndTime "9:04:53 PDT"]
[Termination "maracayo won by checkmate"]

1. d4 {[%clk 0:03:00.9]} 1... Nf6 {[%clk 0:02:58.9]} 2. c4 {[%clk 0:03:00.7]}
2... d6 {[%clk 0:02:57.5]} 3. Nc3 {[%clk 0:02:59.2]} 3... e5 {[%clk 0:02:57.4]}
4. Nf3 {[%clk 0:02:55.6]} 4... Nbd7 {[%clk 0:02:56.5]} 5. g3 {[%clk 0:02:55.8]}
5... Be7 {[%clk 0:02:56.4]} 6. Bg2 {[%clk 0:02:55.9]} 6... O-O {[%clk
0:02:56.3]} 7. O-O {[%clk 0:02:56.5]} 7... Re8 {[%clk 0:02:56.1]} 8. b3 {[%clk
0:02:53.6]} 8... c6 {[%clk 0:02:55.5]} 9. Bb2 {[%clk 0:02:53.7]} 9... e4 {[%clk
0:02:55.3]} 10. Ng5 {[%clk 0:02:50.7]} 10... d5 {[%clk 0:02:55.6]} 11. e3 {[%clk
0:02:38.7]} 11... h6 {[%clk 0:02:53.2]} 12. Nh3 {[%clk 0:02:38]} 12... g5 {[%clk
0:02:51]} 13. f3 {[%clk 0:02:33.6]} 13... exf3 {[%clk 0:02:50.2]} 14. Bxf3
{[%clk 0:02:33.3]} 14... dxc4 {[%clk 0:02:47]} 15. bxc4 {[%clk 0:02:32.3]} 15...
Nb6 {[%clk 0:02:47]} 16. Bg2 {[%clk 0:02:17.1]} 16... Nxc4 {[%clk 0:02:44.9]}
17. Qe2 {[%clk 0:02:17.4]} 17... Nxb2 {[%clk 0:02:43.9]} 18. Qxb2 {[%clk
0:02:16.7]} 18... Bf8 {[%clk 0:02:34.6]} 19. Rae1 {[%clk 0:02:16.2]} 19... Bg7
{[%clk 0:02:34.7]} 20. Nf2 {[%clk 0:02:11.8]} 20... Qb6 {[%clk 0:02:27.8]} 21.
Qc2 {[%clk 0:02:05.7]} 21... Be6 {[%clk 0:02:24.3]} 22. Nd3 {[%clk 0:02:05.1]}
22... Bc4 {[%clk 0:02:22]} 23. Rf2 {[%clk 0:01:53.9]} 23... Bxd3 {[%clk
0:02:12.7]} 24. Qxd3 {[%clk 0:01:53.2]} 24... Rad8 {[%clk 0:02:13.3]} 25. Ref1
{[%clk 0:01:47.3]} 25... c5 {[%clk 0:01:47.4]} 26. d5 {[%clk 0:01:46.2]} 26...
c4 {[%clk 0:01:45.8]} 27. Qxc4 {[%clk 0:01:37.6]} 27... Qxe3 {[%clk 0:01:45.5]}
28. Kh1 {[%clk 0:01:36.4]} 28... Rc8 {[%clk 0:01:44]} 29. Qa4 {[%clk 0:01:28.3]}
29... Qxc3 {[%clk 0:01:42.1]} 30. d6 {[%clk 0:01:25.9]} 30... Re1 {[%clk
0:01:29.6]} 31. d7 {[%clk 0:01:22.2]} 31... Rd8 {[%clk 0:01:28]} 32. Bxb7 {[%clk
0:01:14.1]} 32... Rxf1+ {[%clk 0:01:21.6]} 33. Rxf1 {[%clk 0:01:13.6]} 33...
Rxd7 {[%clk 0:01:09.4]} 34. Rxf6 {[%clk 0:01:12.6]} 34... Qxf6 {[%clk
0:01:07.2]} 35. Qxd7 {[%clk 0:01:11]} 35... Qf1# {[%clk 0:01:06.4]} 0-1

[Event "Early-Titled-Tuesday-Blitz-October-03-2023"]
[Site "Chess.com"]
[Date "2023.10.03"]
[Round "6"]
[White "Rutricks"]
[Black "Sergey85Rodchenkov"]
[Result "1-0"]
[WhiteElo "2677"]
[BlackElo "2521"]
[TimeControl "180+1"]
[EndTime "9:04:55 PDT"]
[Termination "Rutricks won by resignation"]

1. Nf3 {[%clk 0:03:00.6]} 1... d5 {[%clk 0:02:58.3]} 2. b3 {[%clk 0:03:00.4]}
2... Nf6 {[%clk 0:02:57.5]} 3. Bb2 {[%clk 0:03:01.2]} 3... c6 {[%clk 0:02:57.2]}
4. g3 {[%clk 0:03:01.8]} 4... Bg4 {[%clk 0:02:57.5]} 5. Bg2 {[%clk 0:03:02.5]}
5... Nbd7 {[%clk 0:02:57.5]} 6. h3 {[%clk 0:03:03.2]} 6... Bh5 {[%clk
0:02:57.2]} 7. O-O {[%clk 0:03:03.4]} 7... e6 {[%clk 0:02:57.6]} 8. d3 {[%clk
0:03:04]} 8... Bd6 {[%clk 0:02:56.8]} 9. Nbd2 {[%clk 0:03:04.7]} 9... O-O {[%clk
0:02:56.7]} 10. e4 {[%clk 0:03:05.3]} 10... Qb8 {[%clk 0:02:45.9]} 11. Qe1
{[%clk 0:03:04.5]} 11... Bc7 {[%clk 0:02:36.3]} 12. e5 {[%clk 0:02:57]} 12...
Ne8 {[%clk 0:02:36.1]} 13. g4 {[%clk 0:02:57.7]} 13... Bg6 {[%clk 0:02:35.8]}
14. h4 {[%clk 0:02:58.4]} 14... h5 {[%clk 0:02:28.4]} 15. gxh5 {[%clk
0:02:44.1]} 15... Bxh5 {[%clk 0:02:29.3]} 16. Qe3 {[%clk 0:02:44.3]} 16... c5
{[%clk 0:02:08.7]} 17. Qg5 {[%clk 0:02:43]} 17... Bxf3 {[%clk 0:01:58.2]} 18.
Nxf3 {[%clk 0:02:43.9]} 18... d4 {[%clk 0:01:56.1]} 19. Rae1 {[%clk 0:02:42.7]}
19... Nxe5 {[%clk 0:01:52.1]} 20. Nxe5 {[%clk 0:02:25]} 20... f6 {[%clk
0:01:51.8]} 21. Qg4 {[%clk 0:02:10.5]} 21... Bxe5 {[%clk 0:01:45.4]} 22. Qxe6+
{[%clk 0:02:10.9]} 22... Kh8 {[%clk 0:01:45.7]} 23. Bc1 {[%clk 0:02:04.9]} 23...
Bh2+ {[%clk 0:01:16.4]} 24. Kh1 {[%clk 0:02:04.1]} 24... Bf4 {[%clk 0:01:16.6]}
25. Qe7 {[%clk 0:02:04.3]} 25... Bd6 {[%clk 0:01:09.8]} 26. Qe4 {[%clk
0:02:03.2]} 26... Nc7 {[%clk 0:01:00.8]} 27. Qg6 {[%clk 0:01:49.7]} 27... Re8
{[%clk 0:00:46.1]} 28. Bh6 {[%clk 0:01:35.6]} 28... Bf8 {[%clk 0:00:32.9]} 29.
Be4 {[%clk 0:01:36.1]} 29... Rxe4 {[%clk 0:00:31.9]} 30. Rxe4 {[%clk 0:01:37]}
30... gxh6 {[%clk 0:00:31.2]} 31. Rg1 {[%clk 0:01:37.8]} 1-0

[Event "Early-Titled-Tuesday-Blitz-October-03-2023"]
[Site "Chess.com"]
[Date "2023.10.03"]
[Round "6"]
[White "Murad_Ibrahimli"]
[Black "Zablotsky"]
[Result "1-0"]
[WhiteElo "2916"]
[BlackElo "2729"]
[TimeControl "180+1"]
[EndTime "9:04:57 PDT"]
[Termination "Murad_Ibrahimli won by resignation"]

1. e4 {[%clk 0:03:00.9]} 1... d6 {[%clk 0:03:00.5]} 2. d4 {[%clk 0:02:59.6]}
2... Nf6 {[%clk 0:03:01.1]} 3. Bd3 {[%clk 0:02:59.4]} 3... e5 {[%clk 0:03:00.1]}
4. c3 {[%clk 0:02:57.1]} 4... Nc6 {[%clk 0:03:00.2]} 5. Nf3 {[%clk 0:02:56.5]}
5... Bg4 {[%clk 0:02:58.3]} 6. Be3 {[%clk 0:02:51.5]} 6... d5 {[%clk 0:02:47.6]}
7. Nbd2 {[%clk 0:02:25.8]} 7... exd4 {[%clk 0:02:45.7]} 8. cxd4 {[%clk
0:02:25.7]} 8... dxe4 {[%clk 0:02:44.7]} 9. Nxe4 {[%clk 0:02:26.6]} 9... Bb4+
{[%clk 0:02:39.2]} 10. Kf1 {[%clk 0:02:26.6]} 10... O-O {[%clk 0:02:33]} 11. a3
{[%clk 0:02:22.3]} 11... Be7 {[%clk 0:02:27.4]} 12. Bc2 {[%clk 0:02:19.2]} 12...
Re8 {[%clk 0:02:04.6]} 13. h3 {[%clk 0:02:18]} 13... Bxf3 {[%clk 0:02:03.9]} 14.
gxf3 {[%clk 0:02:10.3]} 14... Nd5 {[%clk 0:01:58.8]} 15. Bb3 {[%clk 0:02:09]}
15... Bf8 {[%clk 0:01:47.8]} 16. Rg1 {[%clk 0:02:08.4]} 16... Kh8 {[%clk
0:01:44.1]} 17. Qd3 {[%clk 0:02:04.4]} 17... h6 {[%clk 0:01:38.8]} 18. Bxh6
{[%clk 0:01:57.7]} 18... gxh6 {[%clk 0:01:21.8]} 19. Bxd5 {[%clk 0:01:55.6]}
19... Bg7 {[%clk 0:01:09.8]} 20. Bxc6 {[%clk 0:01:48.8]} 20... bxc6 {[%clk
0:01:09.4]} 21. Rd1 {[%clk 0:01:49.3]} 21... Qh4 {[%clk 0:01:05.7]} 22. Rg3
{[%clk 0:01:30.8]} 22... Rad8 {[%clk 0:01:05.6]} 23. Qc4 {[%clk 0:01:26.5]}
23... f5 {[%clk 0:00:59.6]} 24. Qf7 {[%clk 0:01:23.8]} 24... Re7 {[%clk
0:00:58.7]} 25. Qxf5 {[%clk 0:01:23.5]} 25... Bxd4 {[%clk 0:00:35.9]} 26. Rxd4
{[%clk 0:01:22.9]} 1-0